bitfinex-derivatives/quotes_SOLF0:USTF0_20241011
["timestamp","ask_amount","ask_price","bid_price","bid_amount"]
[1728617388543,12.266,141.52,141.51,11.0870871]
[1728617391765,12.266,141.52,141.49,3.5366]
[1728617391974,12.266,141.52,141.51,4.93883427]
[1728617392173,12.266,141.52,141.51,11.08970201]
[1728617394967,12.266,141.52,141.51,6.15086774]
[1728617395174,12.266,141.52,141.51,11.08993996]
[1728617398160,12.266,141.52,141.49,3.5366]
[1728617398355,12.266,141.52,141.51,4.93962977]
[1728617398656,12.266,141.52,141.51,11.09148827]
[1728617401254,3.536,141.52,141.51,11.09148827]
[1728617401465,8.73,141.52,141.51,11.09148827]
[1728617402259,3.66092,141.53,141.51,11.09148827]
[1728617402559,8.73,141.52,141.5,3.5365]
[1728617402854,8.73,141.52,141.51,11.08984124]
[1728617403063,12.266,141.52,141.51,11.08984124]
[1728617403259,12.266,141.52,141.51,4.93927128]
[1728617403447,3.5366,141.5,141.47,8.5371]
[1728617403762,8.73,141.49,141.48,12.84444159]
[1728617404054,8.73,141.49,141.48,18.9969339]
[1728617405460,8.73,141.49,141.48,19.00018675]
[1728617405759,8.73,141.49,141.48,11.09267854]
[1728617406062,12.2668,141.49,141.48,6.15251894]
[1728617406262,8.73,141.49,141.43,1.3068]
[1728617406456,8.73,141.46,141.44,19.01052162]
[1728617406657,8.73,141.46,141.45,11.10061472]
[1728617407352,8.73,141.46,141.43,3.5381]
[1728617407654,8.73,141.46,141.44,11.10275327]
[1728617407855,8.73,141.46,141.45,4.94489527]
[1728617408056,8.73,141.46,141.45,11.10296961]
[1728617408258,8.73,141.46,141.43,3.5381]
[1728617408451,12.2675,141.46,141.44,11.09961077]
[1728617408651,12.2675,141.46,141.43,3.5381]
[1728617408956,12.2675,141.46,141.44,11.09964633]
[1728617409151,12.2675,141.46,141.43,3.5381]
[1728617409356,12.2675,141.46,141.44,11.09736562]
[1728617409558,12.2675,141.46,141.43,3.5381]
[1728617409755,12.2675,141.46,141.44,11.09782308]
[1728617409972,12.2675,141.46,141.43,3.5381]
[1728617410167,12.2675,141.46,141.44,11.09879906]
[1728617410366,12.2675,141.46,141.43,3.5381]
[1728617410561,12.2675,141.46,141.44,11.09644807]
[1728617410765,12.2675,141.46,141.43,3.5381]
[1728617411070,8.73,141.45,141.44,11.09645771]
[1728617411868,8.73,141.45,141.44,4.94183929]
[1728617412076,8.73,141.45,141.43,3.5381]
[1728617413073,12.2679,141.45,141.42,3.5384]
[1728617413374,8.73,141.44,141.43,11.09014537]
[1728617414076,8.73,141.44,141.43,4.93902905]
[1728617414274,8.73,141.44,141.43,11.08995668]
[1728617414584,8.73,141.44,141.43,11.08907633]
[1728617415473,8.73,141.44,141.4,6.3259]
[1728617415682,12.268,141.44,141.42,11.08669586]
[1728617415879,12.268,141.44,141.41,3.66372]
[1728617416082,12.268,141.44,141.42,11.08696572]
[1728617416280,12.268,141.44,141.41,3.66372]
[1728617416484,12.268,141.44,141.42,11.0846441]
[1728617416786,12.268,141.44,141.41,3.66372]
[1728617417086,12.268,141.44,141.42,11.08444543]
[1728617417381,12.268,141.44,141.41,3.66372]
[1728617417678,12.268,141.44,141.42,11.08283399]
[1728617417879,12.268,141.44,141.41,3.66372]
[1728617418180,12.268,141.44,141.42,11.08274194]
[1728617418379,12.268,141.44,141.41,3.66372]
[1728617418579,12.268,141.44,141.42,11.08117398]
[1728617418781,5.0,141.48,141.41,0.12502]
[1728617418782,8.73,141.45,141.41,0.12502]
[1728617419077,8.73,141.45,141.42,11.0801056]
[1728617419288,3.5377,141.46,141.42,3.5384]
[1728617419475,8.73,141.45,141.41,0.12502]
[1728617419674,8.73,141.45,141.42,11.07904266]
[1728617419884,8.73,141.45,141.42,3.5384]
[1728617422188,12.2683,141.43,141.41,0.12502]
[1728617422383,8.73,141.43,141.41,0.12502]
[1728617424380,12.2684,141.43,141.41,0.12502]
[1728617425276,12.2685,141.42,141.41,0.12502]
[1728617429491,8.73,141.42,141.41,0.12502]
[1728617432189,12.2685,141.42,141.41,0.12502]
[1728617434989,5.0,141.45,141.41,0.12502]
[1728617435292,8.73,141.42,141.41,3.66362]
[1728617436492,8.73,141.42,141.41,0.12502]
[1728617436689,8.73,141.42,141.36,5.0]
[1728617436888,8.73,141.37,141.35,6.46182]
[1728617437093,8.73,141.37,141.35,5.00212]
[1728617437297,8.73,141.38,141.35,5.00212]
[1728617437597,3.5406,141.34,141.3,3.5414]
[1728617437985,8.73,141.31,141.29,0.12502]
[1728617438199,8.73,141.3,141.29,0.12502]
[1728617438794,8.59274743,141.35,141.29,0.12502]
[1728617439097,8.73,141.3,141.29,0.12502]
[1728617441893,12.2715,141.3,141.29,0.12502]
[1728617444493,3.5415,141.3,141.29,0.12502]
[1728617444697,12.2715,141.3,141.29,0.12502]
[1728617448899,3.5422,141.28,141.24,6.3619]
[1728617449093,8.73,141.26,141.24,6.3619]
[1728617449795,8.73,141.26,141.24,1.3946]
[1728617449996,8.73,141.25,141.23,0.12502]
[1728617450197,8.73,141.24,141.23,0.12502]
[1728617450500,12.273,141.24,141.23,0.12502]
[1728617450997,8.73,141.24,141.18,6.3549]
[1728617451195,8.73,141.19,141.18,6.3549]
[1728617451394,8.73,141.19,141.17,3.66972]
[1728617451598,8.73,141.19,141.17,0.12502]
[1728617451796,8.73,141.18,141.17,0.12502]
[1728617452501,12.2745,141.18,141.17,0.12502]
[1728617453301,3.5445,141.18,141.17,0.12502]
[1728617453500,12.2745,141.18,141.17,0.12502]
[1728617463709,3.5445,141.18,141.17,0.12502]
[1728617463907,12.2745,141.18,141.17,0.12502]
[1728617467908,3.545,141.17,141.14,3.5453]
[1728617468109,8.73,141.15,141.14,3.5453]
[1728617470508,8.73,141.15,141.13,1.3504]
[1728617470706,8.73,141.15,141.13,4.8961]
[1728617471102,8.73,141.16,141.13,4.8961]
[1728617475013,12.2751,141.16,141.13,4.8961]
[1728617477019,3.5451,141.16,141.13,4.8961]
[1728617478521,12.2751,141.16,141.13,4.8961]
[1728617479324,12.2753,141.15,141.12,3.5459]
[1728617481920,12.2758,141.13,141.11,0.12502]
[1728617482127,8.73,141.12,141.11,0.12502]
[1728617484325,12.276,141.12,141.11,0.12502]
[1728617493936,2.6828,141.19,141.11,13.85502]
[1728617493937,8.73,141.19,141.11,13.85502]
[1728617494129,8.73,141.19,141.14,8.73]
[1728617494731,8.73,141.19,141.16,3.5449]
[1728617495537,3.544,141.2,141.16,3.5449]
[1728617495538,8.73,141.18,141.16,3.5449]
[1728617496533,8.73,141.18,141.15,3.5452]
[1728617497137,12.2745,141.18,141.15,3.5452]
[1728617497833,5.0,141.21,141.16,3.5448]
[1728617498036,8.73,141.19,141.15,8.73]
[1728617498236,8.73,141.18,141.13,8.73]
[1728617498632,8.73,141.18,141.15,3.5452]
[1728617499638,8.73,141.18,141.13,8.73]
[1728617499836,12.2747,141.18,141.15,3.5453]
[1728617502939,12.2747,141.18,141.12,12.8458]
[1728617503140,8.73,141.18,141.14,3.5454]
[1728617503337,3.5448,141.17,141.14,3.5454]
[1728617504731,3.5452,141.16,141.12,9.1158]
[1728617504937,3.5452,141.16,141.12,17.8458]
[1728617505138,8.73,141.18,141.12,17.8458]
[1728617505544,3.5449,141.17,141.13,3.5456]
[1728617511439,8.73,141.2,141.12,12.8458]
[1728617511641,8.73,141.18,141.12,4.1158]
[1728617512237,3.5449,141.17,141.13,3.5457]
[1728617513247,3.5453,141.16,141.12,7.6617]
[1728617513644,3.5453,141.16,141.12,6.3248]
[1728617516748,3.5453,141.15,141.12,6.3248]
[1728617517651,3.5457,141.14,141.11,3.67122]
[1728617517851,12.2757,141.14,141.11,3.67122]
[1728617518350,12.2757,141.14,141.12,4.92428772]
[1728617518549,12.2757,141.14,141.11,3.67122]
[1728617518752,12.2757,141.14,141.12,4.9242731]
[1728617519053,12.2757,141.14,141.11,3.67122]
[1728617519357,3.5458,141.13,141.12,10.95868375]
[1728617520049,12.2756,141.14,141.12,10.95868375]
[1728617520249,12.2756,141.14,141.11,0.12502]
[1728617520250,12.2756,141.14,141.13,4.92908925]
[1728617520450,12.2756,141.14,141.11,0.12502]
[1728617520756,12.2756,141.14,141.12,6.03147518]
[1728617520949,12.2756,141.14,141.11,3.67122]
[1728617521149,12.2756,141.14,141.12,10.96260084]
[1728617521453,12.2756,141.14,141.11,0.12502]
[1728617521649,12.2756,141.14,141.12,10.96303888]
[1728617521851,12.2756,141.14,141.13,4.93089627]
[1728617522747,12.2756,141.14,141.11,0.12502]
[1728617523050,12.2756,141.14,141.13,4.93104681]
[1728617523250,12.2756,141.14,141.11,0.12502]
[1728617523456,3.5458,141.13,141.12,4.93151551]
[1728617524848,12.2758,141.13,141.12,4.93151551]
[1728617525048,3.546,141.12,141.11,0.12502]
[1728617525351,3.546,141.12,141.11,5.05766785]
[1728617526157,3.546,141.12,141.11,0.12502]
[1728617526350,3.546,141.12,141.11,5.05788485]
[1728617526657,12.276,141.12,141.11,0.12502]
[1728617528051,3.546,141.12,141.11,0.12502]
[1728617538759,1.3727,141.18,141.11,0.12502]
[1728617539063,8.73,141.13,141.11,0.12502]
[1728617539765,3.546,141.12,141.11,0.12502]
[1728617539961,5.0,141.17,141.11,5.0560886]
[1728617540166,8.73,141.13,141.11,0.12502]
[1728617540957,12.276,141.13,141.11,0.12502]
[1728617541264,8.73,141.15,141.11,0.12502]
[1728617541463,13.73,141.15,141.12,4.93081974]
[1728617541655,13.73,141.15,141.11,0.12502]
[1728617542357,13.73,141.15,141.12,4.93108228]
[1728617542358,12.2759,141.13,141.12,4.93108228]
[1728617542557,12.2759,141.13,141.11,0.12502]
[1728617543664,12.276,141.12,141.11,0.12502]
[1728617543866,12.276,141.12,141.11,5.0573729]
[1728617545456,12.276,141.12,141.11,0.12502]
[1728617545661,12.276,141.12,141.11,5.05820569]
[1728617546781,12.276,141.12,141.11,0.12502]
[1728617548255,12.276,141.12,141.11,5.05915959]
[1728617549670,3.5459,141.13,141.11,5.05915959]
[1728617549973,12.2759,141.13,141.11,0.12502]
[1728617550873,3.546,141.12,141.11,0.12502]
[1728617551071,3.546,141.12,141.11,5.05963695]
[1728617551473,3.546,141.12,141.11,11.09310632]
[1728617551771,3.546,141.12,141.11,11.09079026]
[1728617551973,12.2759,141.13,141.11,11.09079026]
[1728617552167,12.2759,141.13,141.11,5.05731722]
[1728617552368,12.2759,141.13,141.11,0.12502]
[1728617554069,12.2759,141.13,141.12,4.93185324]
[1728617554670,12.2759,141.13,141.11,0.12502]
[1728617555273,12.2759,141.13,141.12,4.931837]
[1728617555675,12.2759,141.13,141.11,0.12502]
[1728617556170,12.2759,141.13,141.12,4.93162637]
[1728617557472,12.2759,141.13,141.11,0.12502]
[1728617557675,12.2759,141.13,141.12,4.93276746]
[1728617558270,12.2759,141.13,141.11,0.12502]
[1728617558571,12.2759,141.13,141.12,4.93303569]
[1728617558873,12.2759,141.13,141.11,0.12502]
[1728617560082,12.2759,141.13,141.12,4.93456674]
[1728617560781,3.5459,141.13,141.11,0.12502]
[1728617561281,3.5459,141.13,141.12,4.93508655]
[1728617561676,3.5459,141.13,141.11,0.12502]
[1728617562178,3.5459,141.13,141.12,4.93929157]
[1728617564682,3.5459,141.13,141.11,3.67132]
[1728617564884,3.5459,141.13,141.12,4.9386953]
[1728617568083,3.5459,141.13,141.11,0.12502]
[1728617568382,3.5459,141.13,141.12,4.93852496]
[1728617570091,8.73,141.14,141.12,4.93852496]
[1728617570281,8.73,141.14,141.11,0.12502]
[1728617570282,12.2757,141.14,141.11,0.12502]
[1728617570488,12.2757,141.14,141.12,10.98131311]
[1728617570688,12.2757,141.14,141.11,0.12502]
[1728617570888,12.2757,141.14,141.12,10.9813411]
[1728617571092,12.2757,141.14,141.11,3.67122]
[1728617571387,12.2758,141.13,141.12,4.93958773]
[1728617571577,13.73,141.14,141.12,6.04251642]
[1728617571783,13.73,141.14,141.11,0.12502]
[1728617572088,3.5459,141.13,141.12,10.98221723]
[1728617572986,3.5459,141.13,141.12,4.93969685]
[1728617574192,3.5459,141.13,141.12,10.98448396]
[1728617574693,3.5459,141.13,141.12,4.93969685]
[1728617575094,3.5459,141.13,141.12,10.98392709]
[1728617577687,3.5459,141.13,141.12,4.93969685]
[1728617578396,3.5459,141.13,141.12,10.9858338]
[1728617578595,3.5459,141.13,141.12,4.93969685]
[1728617578991,3.5459,141.13,141.12,10.98372624]
[1728617579894,3.5459,141.13,141.12,18.8884007]
[1728617580894,3.5459,141.13,141.11,0.12502]
[1728617581093,1.4014,141.19,141.12,14.77432167]
[1728617581398,5.0,141.18,141.14,8.73]
[1728617581597,3.545,141.17,141.15,4.94116882]
[1728617581793,3.545,141.17,141.14,12.2754]
[1728617581993,3.545,141.17,141.15,4.93888434]
[1728617582197,3.545,141.17,141.14,12.2754]
[1728617582198,12.275,141.17,141.14,3.5454]
[1728617582395,3.545,141.16,141.15,4.93901381]
[1728617583791,3.545,141.16,141.15,4.93925991]
[1728617585391,12.275,141.16,141.15,4.93925991]
[1728617585796,3.5456,141.14,141.12,3.5459]
[1728617585991,12.2756,141.14,141.13,18.88616061]
[1728617590199,12.2756,141.14,141.11,3.67122]
[1728617590408,12.2756,141.14,141.13,12.84752443]
[1728617590705,12.2756,141.14,141.13,18.8920675]
[1728617593302,12.2756,141.14,141.13,12.84752443]
[1728617593496,12.2756,141.14,141.13,6.04437995]
[1728617593698,12.2756,141.14,141.13,12.84659385]
[1728617593893,12.2756,141.14,141.13,6.04456984]
[1728617594208,12.2756,141.14,141.13,13.95077457]
[1728617594408,1.4014,141.19,141.13,13.95077457]
[1728617594409,13.73,141.16,141.13,13.95077457]
[1728617594703,13.73,141.16,141.14,10.98594779]
[1728617594899,13.73,141.16,141.15,4.94137795]
[1728617597008,17.2751,141.16,141.15,4.94133828]
[1728617599216,12.2751,141.16,141.15,4.94133828]
[1728617602618,12.2751,141.16,141.11,8.85502]
[1728617602619,8.73,141.16,141.11,0.12502]
[1728617602817,5.0,141.18,141.11,0.12502]
[1728617602818,12.276,141.12,141.11,0.12502]
[1728617603122,12.276,141.12,141.11,14.09497587]
[1728617603324,12.276,141.12,141.11,6.17791011]
[1728617603519,12.276,141.12,141.11,6.17790931]
[1728617603819,12.276,141.12,141.11,6.1779826]
[1728617606813,12.276,141.12,141.11,6.17638007]
[1728617610129,12.276,141.12,141.11,0.12502]
[1728617610324,12.276,141.12,141.11,6.17630472]
[1728617612225,12.276,141.12,141.11,6.17615972]
[1728617613123,3.5457,141.14,141.11,6.17615972]
[1728617613331,13.73,141.14,141.12,6.05113972]
[1728617613526,13.73,141.14,141.11,0.12502]
[1728617613727,13.73,141.14,141.12,6.04967183]
[1728617613923,13.73,141.14,141.11,0.12502]
[1728617614129,13.73,141.14,141.12,6.04959623]
[1728617614430,3.5458,141.13,141.11,3.67122]
[1728617614731,3.5458,141.13,141.12,10.91860159]
[1728617616032,12.2758,141.13,141.12,10.91860159]
[1728617616728,3.546,141.12,141.11,0.12502]
[1728617617128,3.546,141.12,141.11,18.83637771]
[1728617618423,12.276,141.12,141.11,18.83637771]
[1728617618726,12.276,141.12,141.11,11.04526923]
[1728617620029,12.276,141.12,141.11,11.04609655]
[1728617629738,3.546,141.12,141.11,11.04609655]
[1728617629938,3.5456,141.14,141.11,22.38146157]
[1728617630132,3.5456,141.14,141.12,10.92107655]
[1728617630345,10.054,141.17,141.13,4.86944284]
[1728617630546,10.054,141.17,141.12,3.5459]
[1728617630547,3.5453,141.15,141.12,3.5459]
[1728617630844,3.5453,141.15,141.13,10.91344864]
[1728617631145,3.5453,141.15,141.14,10.9127242]
[1728617632042,3.5451,141.16,141.14,10.9127242]
[1728617632241,3.5451,141.16,141.13,3.5457]
[1728617632434,3.5451,141.16,141.14,10.91172174]
[1728617632635,3.5451,141.16,141.13,3.5457]
[1728617633143,3.5451,141.16,141.14,10.91162264]
[1728617633346,3.5451,141.16,141.13,3.5457]
[1728617633536,3.5451,141.16,141.14,10.91207111]
[1728617633741,3.5453,141.15,141.12,12.2759]
[1728617634043,3.5453,141.15,141.13,10.91199391]
[1728617634242,3.5453,141.15,141.14,4.86575999]
[1728617636646,3.5453,141.15,141.14,4.86561204]
[1728617637047,3.5453,141.15,141.14,10.91145388]
[1728617637246,3.5453,141.15,141.14,4.86561204]
[1728617637447,3.5453,141.15,141.12,12.2759]
[1728617637749,3.5453,141.15,141.13,10.91221166]
[1728617637950,3.5453,141.15,141.12,12.2759]
[1728617638150,3.5453,141.15,141.13,10.91229876]
[1728617638350,3.5453,141.15,141.14,4.86589904]
[1728617639353,3.5453,141.15,141.13,3.5458]
[1728617639554,3.5453,141.15,141.14,4.86534865]
[1728617640843,3.5453,141.15,141.12,12.276]
[1728617641043,3.5453,141.15,141.13,10.91097354]
[1728617641244,3.5453,141.15,141.12,12.276]
[1728617641450,3.5453,141.15,141.13,10.91014681]
[1728617641750,3.5453,141.15,141.12,12.276]
[1728617641946,3.5453,141.15,141.14,4.86475047]
[1728617642144,3.5453,141.15,141.13,4.86475047]
[1728617642339,3.5453,141.15,141.14,4.86475047]
[1728617647559,2.6524,141.21,141.15,3.5452]
[1728617647751,5.0,141.2,141.16,8.73]
[1728617648251,3.5446,141.18,141.16,12.2749]
[1728617648449,3.5446,141.18,141.16,8.73]
[1728617649058,3.5446,141.18,141.15,8.73]
[1728617649550,3.5446,141.18,141.15,12.2751]
[1728617651548,3.5446,141.18,141.15,3.5451]
[1728617651753,3.5446,141.18,141.15,12.2751]
[1728617653358,3.5449,141.17,141.15,8.73]
[1728617653955,3.5452,141.16,141.13,18.5927]
[1728617654153,3.5452,141.16,141.14,6.03994281]
[1728617654356,3.5452,141.16,141.15,4.86069186]
[1728617654951,3.5452,141.16,141.14,3.5455]
[1728617655460,3.5452,141.16,141.13,1.317]
[1728617655461,8.73,141.16,141.13,1.317]
[1728617655764,3.5453,141.15,141.14,4.86068799]
[1728617658260,3.5453,141.15,141.14,4.8611679]
[1728617658464,3.5453,141.15,141.12,3.546]
[1728617658664,3.5455,141.14,141.13,10.90138522]
[1728617659665,3.5454,141.15,141.13,10.90138522]
[1728617659868,3.5454,141.15,141.12,3.546]
[1728617660167,3.5454,141.15,141.13,10.90182911]
[1728617660369,3.5454,141.15,141.12,12.276]
[1728617660568,3.5454,141.15,141.13,10.90181919]
[1728617660868,3.5454,141.15,141.12,12.276]
[1728617661067,3.5454,141.15,141.13,10.90170539]
[1728617661267,3.5454,141.15,141.12,12.276]
[1728617661468,3.5454,141.15,141.13,10.90146942]
[1728617661668,3.5454,141.15,141.12,12.276]
[1728617661868,3.5454,141.15,141.13,10.90146437]
[1728617662071,3.5454,141.15,141.12,12.276]
[1728617662275,3.5454,141.15,141.13,10.90164589]
[1728617662569,3.5454,141.15,141.12,12.276]
[1728617662758,3.5454,141.15,141.13,10.90181376]
[1728617662960,3.5454,141.15,141.12,12.276]
[1728617663161,3.5455,141.14,141.13,10.90167587]
[1728617664661,5.0,141.18,141.13,19.63167587]
[1728617664866,13.73,141.18,141.13,8.73]
[1728617665065,3.5452,141.16,141.13,8.73]
[1728617665571,3.5452,141.16,141.14,4.86077785]
[1728617665775,3.5452,141.16,141.13,12.2757]
[1728617666069,3.5452,141.16,141.14,4.86072467]
[1728617666270,3.5452,141.16,141.13,12.2757]
[1728617666673,3.5452,141.16,141.14,3.5455]
[1728617667967,3.5452,141.16,141.13,12.2757]
[1728617668169,3.5452,141.16,141.14,4.86069998]
[1728617668371,3.5452,141.16,141.13,12.2757]
[1728617669476,3.5452,141.16,141.14,4.86046567]
[1728617669679,3.5452,141.16,141.13,12.2757]
[1728617669872,8.73,141.17,141.14,4.8604858]
[1728617670073,3.5453,141.15,141.13,12.2757]
[1728617670779,3.5457,141.14,141.11,5.02382]
[1728617670978,8.73,141.16,141.12,18.67973756]
[1728617671276,8.73,141.16,141.13,4.86121484]
[1728617671471,3.5457,141.14,141.12,7.77794285]
[1728617671678,3.5457,141.14,141.13,4.86120862]
[1728617671875,3.5457,141.14,141.13,10.90177352]
[1728617672065,3.5457,141.14,141.11,5.02372]
[1728617672265,3.5457,141.14,141.13,6.0405795]
[1728617672772,3.5457,141.14,141.13,10.90189667]
[1728617672975,3.5457,141.14,141.13,4.86131717]
[1728617673171,3.5457,141.14,141.13,10.9023864]
[1728617674479,3.5457,141.14,141.12,3.546]
[1728617674776,3.5457,141.14,141.13,10.90289435]
[1728617681378,3.5457,141.14,141.12,12.276]
[1728617681574,3.5457,141.14,141.13,6.04302234]
[1728617681776,3.5457,141.14,141.13,10.9061897]
[1728617684373,3.5457,141.14,141.13,4.86316736]
[1728617684574,3.5457,141.14,141.13,10.90692894]
[1728617686982,5.0,141.18,141.13,14.45262894]
[1728617686983,3.5452,141.16,141.13,14.45262894]
[1728617687180,3.5452,141.16,141.13,3.5457]
[1728617687686,3.5452,141.16,141.14,4.86363987]
[1728617687987,3.5452,141.16,141.14,4.86361724]
[1728617688188,3.5452,141.16,141.13,3.5457]
[1728617688588,3.5452,141.16,141.14,4.8640313]
[1728617688890,3.5452,141.16,141.13,3.5457]
[1728617689183,3.5452,141.16,141.14,4.86396145]
[1728617689386,3.5452,141.16,141.13,3.5457]
[1728617689586,3.5452,141.16,141.14,4.86444341]
[1728617689787,3.5452,141.16,141.13,3.5457]
[1728617689980,3.5452,141.16,141.14,4.86444067]
[1728617690184,3.5449,141.17,141.12,8.73]
[1728617690380,13.73,141.18,141.13,18.6924684]
[1728617690593,13.73,141.18,141.12,8.73]
[1728617690594,13.73,141.18,141.14,10.90936252]
[1728617690889,13.73,141.18,141.12,8.73]
[1728617691094,13.73,141.18,141.13,4.86443571]
[1728617691390,3.5452,141.16,141.14,9.58998509]
[1728617691586,3.5452,141.16,141.14,3.5454]
[1728617691780,3.5452,141.16,141.13,3.5457]
[1728617692088,3.5452,141.16,141.14,10.91068745]
[1728617692286,3.5452,141.16,141.13,3.5457]
[1728617692591,3.5452,141.16,141.14,10.91193756]
[1728617692889,3.5452,141.16,141.13,3.5457]
[1728617693099,3.5452,141.16,141.14,10.91194643]
[1728617693291,3.5452,141.16,141.15,4.86624804]
[1728617694090,3.5452,141.16,141.13,3.5457]
[1728617694283,3.5452,141.16,141.14,10.91402022]
[1728617694485,3.5452,141.16,141.15,4.86632639]
[1728617696286,3.5452,141.16,141.15,10.9159823]
[1728617700601,3.5452,141.16,141.15,4.86632639]
[1728617700802,3.5452,141.16,141.15,4.87109162]
[1728617701095,3.5452,141.16,141.15,10.92394205]
[1728617702800,3.5452,141.16,141.15,4.87109162]
[1728617702997,8.73,141.18,141.15,10.92429639]
[1728617703301,4.89846326,141.21,141.11,6.47762]
[1728617703302,8.73,141.19,141.16,3.545]
[1728617703703,3.5445,141.19,141.16,3.545]
[1728617704400,3.5446,141.18,141.16,3.545]
[1728617706095,3.5446,141.18,141.15,12.2751]
[1728617706397,8.73,141.2,141.12,2.6044]
[1728617706398,3.5437,141.22,141.17,8.73]
[1728617706703,13.85502,141.23,141.17,8.73]
[1728617706897,8.73,141.22,141.17,8.73]
[1728617707100,3.5439,141.21,141.17,8.73]
[1728617707300,8.73,141.22,141.17,12.2747]
[1728617708303,3.5442,141.2,141.17,12.2747]
[1728617708901,3.5444,141.19,141.16,3.545]
[1728617709103,8.73,141.18,141.17,4.87041725]
[1728617709409,8.73,141.18,141.14,5.0]
[1728617709705,3.5449,141.17,141.14,5.0]
[1728617709902,3.5449,141.17,141.15,10.92322111]
[1728617710100,3.5449,141.17,141.16,10.92322111]
[1728617710296,3.5449,141.17,141.16,4.87077034]
[1728617710708,3.5449,141.17,141.16,10.92309243]
[1728617711510,8.73,141.18,141.16,10.92309243]
[1728617711810,12.2747,141.18,141.15,3.5453]
[1728617711998,12.2747,141.18,141.16,10.9242015]
[1728617712307,12.2747,141.18,141.15,3.5453]
[1728617712607,12.2747,141.18,141.16,10.92400693]
[1728617712809,12.2747,141.18,141.15,3.5453]
[1728617713010,12.2747,141.18,141.16,4.87108367]
[1728617713402,12.2747,141.18,141.15,3.5453]
[1728617713598,12.2747,141.18,141.16,10.92366319]
[1728617713804,12.2747,141.18,141.15,3.5453]
[1728617714005,12.2747,141.18,141.16,10.92378079]
[1728617714205,12.2747,141.18,141.15,3.5453]
[1728617714405,12.2747,141.18,141.16,10.92352527]
[1728617714609,12.2747,141.18,141.15,3.5453]
[1728617714812,12.2747,141.18,141.16,10.92433346]
[1728617715011,3.5447,141.18,141.15,3.5453]
[1728617715211,3.5447,141.18,141.16,10.92433684]
[1728617715410,3.5447,141.18,141.15,3.5453]
[1728617715624,3.5447,141.18,141.16,10.92413369]
[1728617715824,3.5447,141.18,141.15,3.5453]
[1728617716024,3.5447,141.18,141.16,10.92421597]
[1728617716328,3.5447,141.18,141.15,3.5453]
[1728617716522,3.60527619,141.22,141.14,13.73]
[1728617716722,3.5444,141.19,141.16,8.41614895]
[1728617716918,3.5444,141.19,141.16,3.5449]
[1728617717320,3.5444,141.19,141.17,5.4241765]
[1728617717526,12.2744,141.19,141.16,3.5449]
[1728617717823,5.12502,141.23,141.18,8.73]
[1728617717824,0.12502,141.23,141.18,8.73]
[1728617718023,0.12502,141.23,141.2,8.73]
[1728617718227,8.73,141.21,141.18,1.3106]
[1728617718529,3.5444,141.19,141.18,5.0]
[1728617718727,3.5444,141.19,141.16,5.0]
[1728617718925,3.5444,141.19,141.17,5.42338187]
[1728617719231,3.5444,141.19,141.16,5.0]
[1728617719430,3.5445,141.18,141.17,5.42345649]
[1728617720024,3.5445,141.18,141.17,5.42341053]
[1728617720930,3.5445,141.19,141.17,5.42341053]
[1728617721226,3.5445,141.19,141.16,17.275]
[1728617721425,3.5445,141.19,141.17,5.42323689]
[1728617721625,3.5445,141.19,141.16,17.275]
[1728617721825,3.5445,141.19,141.17,5.42318986]
[1728617722015,3.5445,141.19,141.16,17.275]
[1728617722220,3.5445,141.19,141.17,5.4233219]